fUST/lending_fUST_20240730
["ID","MTS","AMOUNT","RATE_DAILY","PERIOD"]
[333613580,1722281449337,-550.6,0.00013972,2]
[333613581,1722281449347,-817.34,0.00013972,2]
[333613582,1722281449360,-500.0,0.00013972,2]
[333613583,1722281449370,-658.88,0.00013972,2]
[333613584,1722281449380,-500.0,0.00013972,2]
[333613585,1722281449390,-500.0,0.00013972,2]
[333613586,1722281449399,-1091.07,0.00013972,2]
[333613587,1722281449409,-500.0,0.00013972,2]
[333613588,1722281449418,-500.0,0.00013972,2]
[333613589,1722281449428,-500.0,0.00013972,2]
[333613590,1722281449437,-512.84981989,0.00013972,2]
[333613591,1722281449446,-500.0,0.00013972,2]
[333613592,1722281449456,-500.0,0.00013972,2]
[333613593,1722281449465,-500.0,0.00013972,2]
[333613594,1722281449475,-325.36337819,0.00013972,2]
[333613595,1722281449484,-500.0,0.00013972,2]
[333613596,1722281449493,-500.0,0.00013972,2]
[333613597,1722281449504,-500.0,0.00013972,2]
[333613598,1722281449513,-867.16,0.00013972,2]
[333613599,1722281449524,-500.0,0.00013972,2]
[333613600,1722281449534,-500.0,0.00013972,2]
[333613601,1722281449544,-500.0,0.00013972,2]
[333613602,1722281449553,-500.0,0.00013972,2]
[333613603,1722281449562,-554.22845092,0.00013972,2]
[333613604,1722281449571,-504.03913562,0.00013972,2]
[333613605,1722281449580,-500.0,0.00013972,2]
[333613606,1722281449589,-500.0,0.00013972,2]
[333613607,1722281449600,-500.0,0.00013972,2]
[333613608,1722281449609,-500.0,0.00013972,2]
[333613609,1722281449618,-504.20254421,0.00013972,2]
[333613610,1722281449627,-500.0,0.00013972,2]
[333613611,1722281449636,-500.0,0.00013972,2]
[333613612,1722281449646,-500.0,0.00013972,2]
[333613613,1722281449656,-500.0,0.00013972,2]
[333613614,1722281449668,-500.0,0.00013972,2]
[333613615,1722281449678,-500.0,0.00013972,2]
[333613616,1722281449688,-478.3836698,0.00013972,2]
[333613617,1722281449697,-500.0,0.00013972,2]
[333613618,1722281449707,-503.4263676,0.00013972,2]
[333613619,1722281449716,-500.0,0.00013972,2]
[333613620,1722281449726,-500.0,0.00013972,2]
[333613621,1722281449735,-500.0,0.00013972,2]
[333613622,1722281449745,-500.0,0.00013972,2]
[333613623,1722281449754,-500.0,0.00013972,2]
[333613624,1722281449764,-500.0,0.00013972,2]
[333613625,1722281449774,-500.0,0.00013972,2]
[333613626,1722281449784,-500.0,0.00013972,2]
[333613627,1722281449794,-500.0,0.00013972,2]
[333613628,1722281449804,-514.13655245,0.00013972,2]
[333613629,1722281449813,-500.0,0.00013972,2]
[333613630,1722281449823,-500.0,0.00013972,2]
[333613631,1722281449837,-503.63334197,0.00013972,2]
[333613632,1722281449944,-500.0,0.00013972,2]
[333613633,1722281449954,-500.0,0.00013972,2]
[333613634,1722281449964,-384.53519204,0.00013972,2]
[333613635,1722281449975,-1020.73,0.00013972,2]
[333613636,1722281449984,-445.9911003,0.00013972,2]
[333613637,1722281449995,-500.0,0.00013972,2]
[333613638,1722281450006,-500.0,0.00013972,2]
[333613639,1722281450015,-500.0,0.00013972,2]
[333613640,1722281450024,-500.0,0.00013972,2]
[333613641,1722281450034,-500.0,0.00013972,2]
[333613642,1722281450043,-150.0,0.00013972,2]
[333613643,1722281450053,-572.03,0.00013972,2]
[333613644,1722281450063,-500.0,0.00013972,2]
[333613645,1722281450073,-607.65872534,0.00013972,2]
[333613646,1722281450083,-509.03300182,0.00013972,2]
[333613647,1722281450092,-500.0,0.00013972,2]
[333613648,1722281450104,-500.0,0.00013972,2]
[333613649,1722281450113,-500.0,0.00013972,2]
[333613650,1722281450123,-500.0,0.00013972,2]
[333613651,1722281450136,-500.0,0.00013972,2]
[333613652,1722281450148,-1058.52,0.00013972,2]
[333613653,1722281450158,-500.0,0.00013972,2]
[333613654,1722281450168,-500.0,0.00013972,2]
[333613655,1722281450177,-500.0,0.00013972,2]
[333613656,1722281450186,-500.0,0.00013972,2]
[333613657,1722281450195,-502.20136358,0.00013972,2]
[333613658,1722281450205,-500.0,0.00013972,2]
[333613659,1722281450214,-503.36752975,0.00013972,2]
[333613660,1722281450223,-500.0,0.00013972,2]
[333613661,1722281450232,-500.0,0.00013972,2]
[333613662,1722281450242,-500.0,0.00013972,2]
[333613663,1722281450252,-500.0,0.00013972,2]
[333613664,1722281450263,-500.0,0.00013972,2]
[333613665,1722281450273,-500.0,0.00013972,2]
[333613666,1722281450283,-500.0,0.00013972,2]
[333613667,1722281450292,-500.0,0.00013972,2]
[333613668,1722281450301,-500.0,0.00013972,2]
[333613669,1722281450311,-500.0,0.00013972,2]
[333613670,1722281450320,-500.0,0.00013972,2]
[333613671,1722281450329,-500.0,0.00013972,2]
[333613672,1722281450338,-612.26,0.00013972,2]
[333613673,1722281450351,-500.0,0.00013972,2]
[333613674,1722281450360,-500.0,0.00013972,2]
[333613675,1722281450369,-500.0,0.00013972,2]
[333613676,1722281450379,-500.0,0.00013972,2]
[333613677,1722281450388,-1896.39,0.00013972,2]
[333613678,1722281450398,-500.0,0.00013972,2]
[333613679,1722281450407,-500.0,0.00013972,2]
[333613680,1722281450417,-708.21,0.00013972,2]
[333613681,1722281450427,-332.32148358,0.00013972,2]
[333613682,1722281450436,-1775.25,0.00013972,2]
[333613683,1722281450446,-500.0,0.00013972,2]
[333613684,1722281450459,-500.0,0.00013972,2]
[333613685,1722281450469,-500.0,0.00013972,2]
[333613686,1722281450479,-500.0,0.00013972,2]
[333613687,1722281450488,-792.23,0.00013972,2]
[333613688,1722281450497,-500.0,0.00013972,2]
[333613689,1722281450507,-284.69108088,0.00013972,2]
[333613690,1722281450516,-507.16405368,0.00013972,2]
[333613691,1722281450526,-412.48993703,0.00013972,2]
[333613692,1722281450535,-500.0,0.00013972,2]
[333613693,1722281450545,-579.92649508,0.00013972,2]
[333613694,1722281450554,-500.0,0.00013972,2]
[333613695,1722281450563,-500.0,0.00013972,2]
[333613696,1722281450572,-500.0,0.00013972,2]
[333613697,1722281450581,-500.0,0.00013972,2]
[333613698,1722281450590,-627.32,0.00013972,2]
[333613699,1722281450601,-500.0,0.00013972,2]
[333613700,1722281450611,-505.98069283,0.00013972,2]
[333613701,1722281450620,-500.0,0.00013972,2]
[333613702,1722281450629,-877.51,0.00013972,2]
[333613703,1722281450639,-500.0,0.00013972,2]
[333613704,1722281450648,-500.0,0.00013972,2]
[333613705,1722281450660,-500.0,0.00013972,2]
[333613706,1722281450671,-500.0,0.00013972,2]
[333613707,1722281450680,-500.0,0.00013972,2]
[333613708,1722281450690,-1013.42,0.00013972,2]
[333613709,1722281450699,-604.77,0.00013972,2]
[333613710,1722281450709,-500.0,0.00013972,2]
[333613711,1722281450718,-500.0,0.00013972,2]
[333613712,1722281450727,-500.0,0.00013972,2]
[333613713,1722281450736,-2095.96,0.00013972,2]
[333613714,1722281450746,-500.0,0.00013972,2]
[333613715,1722281450755,-525.65409885,0.00013972,2]
[333613716,1722281450764,-500.0,0.00013972,2]
[333613717,1722281450774,-500.0,0.00013972,2]
[333613718,1722281450784,-500.0,0.00013972,2]
[333613719,1722281450793,-536.20268313,0.00013972,2]
[333613720,1722281450803,-500.0,0.00013972,2]
[333613721,1722281450812,-918.38,0.00013972,2]
[333613722,1722281450822,-500.0,0.00013972,2]
[333613723,1722281450834,-500.0,0.00013972,2]
[333613724,1722281450843,-500.0,0.00013972,2]
[333613725,1722281450853,-500.0,0.00013972,2]
[333613726,1722281450863,-500.0,0.00013972,2]
[333613727,1722281450873,-2241.43,0.00013972,2]
[333613728,1722281450882,-500.0,0.00013972,2]
[333613729,1722281450892,-500.0,0.00013972,2]
[333613730,1722281450901,-500.0,0.00013972,2]
[333613731,1722281450913,-529.78928007,0.00013972,2]
[333613732,1722281450924,-500.0,0.00013972,2]
[333613733,1722281450934,-500.0,0.00013972,2]
[333613734,1722281450943,-659.76,0.00013972,2]
[333613735,1722281450952,-500.0,0.00013972,2]
[333613736,1722281450962,-500.0,0.00013972,2]
[333613737,1722281450971,-500.0,0.00013972,2]
[333613738,1722281450981,-760.05,0.00013972,2]
[333613739,1722281450990,-588.23,0.00013972,2]
[333613740,1722281451000,-1134.66,0.00013972,2]
[333613741,1722281451011,-500.0,0.00013972,2]
[333613742,1722281451020,-170.31001599,0.00013972,2]
[333613743,1722281452329,-500.0,0.00013698,2]
[333613744,1722281452341,-998.85,0.00013698,2]
[333613745,1722281452351,-500.0,0.00013698,2]
[333613746,1722281452361,-500.0,0.00013698,2]
[333613747,1722281452370,-500.0,0.00013698,2]
[333613748,1722281452380,-329.68998401,0.00013972,2]
[333613749,1722281452389,-838.69,0.00013972,2]
[333613750,1722281452399,-500.0,0.00013972,2]
[333613751,1722281452408,-557.6,0.00013972,2]
[333613752,1722281452417,-500.0,0.00013972,2]
[333613753,1722281452427,-500.0,0.00013972,2]
[333613754,1722281452436,-500.0,0.00013972,2]
[333613755,1722281452446,-112.76116991,0.00013972,2]
[333613756,1722281452458,-869.94591213,0.00013972,2]
[333613757,1722281452469,-330.29329238,0.00013972,2]
[333613758,1722281452481,-205.03962558,0.00013972,2]
[333613759,1722281452490,-564.89,0.00013972,2]
[333613760,1722281452499,-181.20532155,0.00013972,2]
[333613761,1722281452508,-44.62758823,0.00013972,2]
[333613762,1722281452520,-455.37241177,0.00013972,2]
[333613763,1722281452529,-500.0,0.00013972,2]
[333613764,1722281452538,-500.0,0.00013972,2]
[333613765,1722281452548,-500.0,0.00013972,2]
[333613766,1722281452557,-327.07571737,0.00013972,2]
[333613767,1722281452566,-734.23,0.00013972,2]
[333613768,1722281452575,-541.86,0.00013972,2]
[333613769,1722281452584,-992.23,0.00013972,2]
[333613770,1722281452594,-668.52,0.00013972,2]
[333613771,1722281452606,-1332.96,0.00013972,2]
[333613772,1722281452615,-1337.56,0.00013972,2]
[333613773,1722281452624,-500.0,0.00013972,2]
[333613774,1722281452635,-582.26,0.00013972,2]
[333613775,1722281452644,-1274.12,0.00013972,2]
[333613776,1722281452653,-541.52978121,0.00013972,2]
[333613777,1722281452664,-500.0,0.00013972,2]
[333613778,1722281452674,-924.42,0.00013972,2]
[333613779,1722281452683,-370.81564716,0.00013972,2]
[333613780,1722281452989,-3556.59023148,0.000129,2]
[333613781,1722281452999,-500.0,0.00013698,2]
[333613782,1722281453009,-506.0,0.00013954,2]
[333613783,1722281453018,-129.18435284,0.00013972,2]
[333613784,1722281453027,-500.0,0.00013972,2]
[333613785,1722281453037,-544.382906,0.00013972,2]
[333613786,1722281453046,-880.2,0.00013972,2]
[333613787,1722281453056,-500.0,0.00013972,2]
[333613788,1722281453065,-544.382906,0.00013972,2]
[333613789,1722281453075,-500.0,0.00013972,2]
[333613790,1722281453084,-151.0,0.00013972,2]
[333613791,1722281453093,-500.0,0.00013972,2]
[333613792,1722281453104,-826.1,0.00013972,2]
[333613793,1722281453113,-500.0,0.00013972,2]
[333613794,1722281453122,-151.865586,0.00013972,2]
[333613795,1722281453132,-1153.91177499,0.00013972,2]
[333613796,1722281453170,-1011.23552592,0.00013972,2]
[333613797,1722281453181,-310.73234032,0.00013972,2]
[333613800,1722281765243,500.0,0.00027,120]
[333613801,1722281852465,410.8,0.00027,120]
[333613804,1722282567247,500.0,0.00027,120]
[333613856,1722282632556,-261.51758345,9.999e-05,2]
[333613980,1722282638586,-231.46422276,9.999e-05,2]
[333613981,1722282638595,-292.45274907,9.999e-05,2]
[333613982,1722282638605,-300.0,0.00011651,2]
[333613983,1722282638615,-300.0,0.00011651,2]
[333613984,1722282638625,-54.28782811,0.00011652,2]
[333613985,1722282638640,-24845.71217189,0.00011652,2]
[333613986,1722282638649,-167.930127,0.00011679,2]
[333613987,1722282638659,-167.930127,0.00011755,2]
[333613988,1722282638668,-167.930127,0.00011831,2]
[333613989,1722282638678,-167.930127,0.00011907,2]
[333613990,1722282638687,-167.930127,0.00011983,2]
[333613991,1722282638696,-167.930127,0.0001206,2]
[333613992,1722282638705,-167.930127,0.00012136,2]
[333613993,1722282638715,-167.930127,0.00012212,2]
[333613994,1722282638725,-167.930127,0.00012288,2]
[333613996,1722282638734,-420.0,0.00012816,2]
[333613998,1722282638743,-200.0,0.00012986,2]
[333613999,1722282638752,-3335.46477538,0.00013488,2]
[333614000,1722282638762,-64227.5101809,0.00013578,2]
[333614001,1722282638771,-8239.94949553,0.00013588,2]
[333614018,1722282640853,-80648.05050447,0.00013588,2]
[333614019,1722282640865,-2235.31359201,0.00013598,2]
[333614020,1722282640874,-2000.0,0.00013598,2]
[333614021,1722282640884,-150.112233,0.000136,2]
[333614022,1722282640893,-150.112233,0.000136,2]
[333614023,1722282640902,-16399.38375132,0.00013688,2]
[333614032,1722282643675,-622.2,0.00013688,2]
[333614033,1722282643780,-5858.4576,0.00013688,2]
[333614058,1722282646809,-635.6,0.00013688,2]
[333614121,1722283831927,-201.30206083,9.999e-05,2]
[333614122,1722283831937,-288.99555282,9.999e-05,2]
[333614124,1722283831947,-154.91465787,9.999e-05,2]
[333614126,1722283831956,-160.08287463,9.999e-05,2]
[333614127,1722283831966,-220.0298668,0.0001,2]
[333614128,1722283831976,-300.0,0.00010958,2]
[333614130,1722283831986,-563.44,0.00010959,2]
[333614132,1722283831995,-469.54,0.00010959,2]
[333614135,1722283832005,-391.28,0.00010959,2]
[333614137,1722283832015,-326.07,0.00010959,2]
[333614139,1722283832024,-271.72,0.00010959,2]
[333614141,1722283832034,-226.43,0.00010959,2]
[333614143,1722283832043,-188.7,0.00010959,2]
[333614145,1722283832053,-157.25,0.00010959,2]
[333614147,1722283832062,-786.25,0.00010959,2]
[333614149,1722283832071,-166.666666,0.00011549,2]
[333614151,1722283832081,-1000.0,0.00012,12]
[333614153,1722283832090,-420.0,0.00012054,2]
[333614155,1722283832100,-4695.72508252,0.00012142,2]
[333614312,1722283837775,-1519.70444288,0.00012142,2]
[333614313,1722283837788,-3964.46371857,0.00012142,2]
[333614314,1722283837829,-2583.26638813,0.00012142,2]
[333614315,1722283837840,-658.61,0.00012142,2]
[333614316,1722283837852,-11478.2303679,0.00012142,2]
[333614317,1722283837861,-2918.53167844,0.00012978,2]
[333614318,1722283837871,-200.0,0.00012986,2]
[333614319,1722283837881,-1000.0,0.00013,13]
[333614320,1722283837890,-155.8045593,0.00013078,2]
[333614321,1722283837900,-493.0124977,0.00013078,2]
[333614322,1722283837910,-206.8246195,0.00013078,2]
[333614323,1722283837919,-294.0793213,0.00013078,2]
[333614324,1722283837929,-206.8246195,0.00013178,2]
[333614325,1722283837938,-304.0717976,0.00013205,2]
[333614326,1722283837948,-206.8246195,0.00013205,2]
[333614327,1722283837957,-206.8246195,0.00013205,2]
[333614328,1722283837967,-223.3626162,0.00013205,2]
[333614329,1722283837976,-587.0,0.00013259,2]
[333614330,1722283837986,-206.8246195,0.00013278,2]
[333614331,1722283837995,-5309.48206098,0.00013378,2]
[333614332,1722283838005,-289.18175283,0.00013417,2]
[333614333,1722283838014,-324.66183597,0.00013578,2]
[333614334,1722283838024,-324.66183594,0.00013583,2]
[333614335,1722283838033,-324.66183594,0.00013588,2]
[333614336,1722283838042,-2000.0,0.00013588,2]
[333614337,1722283838052,-324.66183594,0.00013593,2]
[333614338,1722283838061,-2421.33387552,0.00013598,2]
[333614339,1722283838071,-324.66183594,0.00013598,2]
[333614340,1722283838081,-21753.93203584,0.00013667,5]
[333614341,1722283838091,-79640.95301993,0.00013668,2]
[333614359,1722283839885,-30344.28416399,0.00013668,2]
[333614361,1722283839896,-135999.99999992,0.00013668,2]
[333614363,1722283839908,-1106.648743,0.00013668,2]
[333614368,1722283839937,-1325.84318178,0.00013668,2]
[333614372,1722283840010,-3257.39999997,0.00013668,2]
[333614373,1722283840021,-8432.26864241,0.00013668,2]
[333614374,1722283840031,-20979.4260558,0.00013678,2]
[333614375,1722283840075,-812.81873659,0.00013678,2]
[333614406,1722283845943,-5198.86785137,0.00013155,2]
[333614407,1722283845953,-8408.13214863,0.00013678,2]
[333614408,1722283845965,-34826.47249668,0.00013678,2]
[333614409,1722283845975,-2953.50286011,0.00013688,5]
[333614410,1722283845984,-157.31333746,0.00013688,2]
[333614411,1722283845994,-154.77569405,0.00013688,2]
[333614412,1722283846003,-131986.6805922,0.00013688,2]
[333614413,1722283846012,-154.76012181,0.00013688,2]
[333614414,1722283846021,-2850.17464641,0.00013688,2]
[333614468,1722285032522,-160.08287463,9.999e-05,2]
[333614469,1722285032532,-300.0,0.00011963,2]
[333614470,1722285032542,-1561.33867708,0.00012396,2]
[333614473,1722285038070,-23338.66132292,0.00012396,2]
[333614474,1722285038080,-200.0,0.00012986,2]
[333614475,1722285038090,-1000.0,0.00013,13]
[333614476,1722285038099,-420.0,0.00013159,2]
[333614477,1722285038109,-5309.48206098,0.00013206,2]
[333614478,1722285038118,-2747.79715955,0.000133,2]
[333614479,1722285038129,-206.8246195,0.000134,2]
[333614480,1722285038138,-306.6875328,0.000135,2]
[333614481,1722285038149,-2179.20048795,0.00013598,2]
[333614482,1722285038160,-352.46105253,0.00013598,2]
[333614483,1722285038172,-21868.84036121,0.000136,2]
[333614484,1722285038181,-2651.23066387,0.00013655,2]
[333614485,1722285038190,-95506.40265543,0.00013686,2]
[333614486,1722285038200,-5116.13624554,0.00013688,2]
[333614487,1722285038210,-749.98341536,0.00013688,2]
[333614488,1722285038220,-1274.80894117,0.00013688,2]
[333614489,1722285038230,-3652.43784896,0.00013688,2]
[333614490,1722285038239,-1629.26928721,0.00013688,2]
[333614491,1722285038250,-165.87362994,0.00013688,2]
[333614492,1722285038259,-157.31333746,0.00013688,2]
[333614493,1722285038271,-309314.624939,0.00013688,2]
[333614494,1722285038280,-1476.75143006,0.00013698,5]
[333614495,1722285038290,-10876.96601792,0.00013698,5]
[333614496,1722285038299,-500.0,0.00013698,2]
[333614497,1722285038309,-500.0,0.00013698,2]
[333614498,1722285038319,-286.75239681,0.00013698,2]
[333614499,1722285038328,-500.0,0.00013698,2]
[333614500,1722285038338,-550.0,0.00013698,2]
[333614501,1722285038347,-500.0,0.00013698,2]
[333614502,1722285038356,-500.0,0.00013698,2]
[333614503,1722285038366,-500.0,0.00013698,2]
[333614504,1722285038375,-500.0,0.00013698,2]
[333614505,1722285038384,-500.0,0.00013698,2]
[333614506,1722285038394,-373.41010582,0.00013698,2]
[333614507,1722285038404,-500.0,0.00013698,2]
[333614508,1722285038412,-500.0,0.00013698,2]
[333614509,1722285038422,-500.0,0.00013698,2]
[333614510,1722285038431,-500.0,0.00013698,2]
[333614511,1722285038441,-192.85681474,0.00013698,2]
[333614512,1722285038450,-500.0,0.00013698,2]
[333614513,1722285038460,-500.0,0.00013698,2]
[333614514,1722285038469,-500.0,0.00013698,2]
[333614515,1722285038478,-278.04987231,0.00013698,2]
[333614516,1722285038488,-500.0,0.00013698,2]
[333614517,1722285038497,-500.0,0.00013698,2]
[333614518,1722285038506,-500.0,0.00013698,2]
[333614519,1722285038516,-500.0,0.00013698,2]
[333614520,1722285038525,-500.0,0.00013698,2]
[333614521,1722285038535,-500.0,0.00013698,2]
[333614522,1722285038544,-233.1232207,0.00013698,2]
[333614523,1722285038554,-500.0,0.00013698,2]
[333614524,1722285038563,-500.0,0.00013698,2]
[333614525,1722285038575,-500.0,0.00013698,2]
[333614526,1722285038587,-167.89263842,0.00013698,2]
[333614527,1722285038597,-500.0,0.00013698,2]
[333614528,1722285038607,-500.0,0.00013698,2]
[333614529,1722285038616,-500.0,0.00013698,2]
[333614530,1722285038625,-500.0,0.00013698,2]
[333614531,1722285038633,-244.60138534,0.00013698,2]
[333614532,1722285038643,-500.0,0.00013698,2]
[333614533,1722285038652,-240.95534342,0.00013698,2]
[333614534,1722285038661,-500.0,0.00013698,2]
[333614535,1722285038671,-201.33450484,0.00013698,2]
[333614536,1722285038681,-340.93415339,0.00013698,2]
[333614537,1722285038690,-500.0,0.00013698,2]
[333614538,1722285038699,-500.0,0.00013698,2]
[333614539,1722285038709,-500.0,0.00013698,2]
[333614540,1722285038719,-500.0,0.00013698,2]
[333614541,1722285038728,-167.3020329,0.00013698,2]
[333614542,1722285038738,-500.0,0.00013698,2]
[333614543,1722285038747,-500.0,0.00013698,2]
[333614544,1722285038757,-626.86520636,0.00013698,2]
[333614545,1722285038766,-500.0,0.00013698,2]
[333614546,1722285038775,-500.0,0.00013698,2]
[333614547,1722285038785,-500.0,0.00013698,2]
[333614548,1722285038795,-500.0,0.00013698,2]
[333614549,1722285038804,-500.0,0.00013698,2]
[333614550,1722285038814,-500.0,0.00013698,2]
[333614551,1722285038825,-500.0,0.00013698,2]
[333614552,1722285038834,-500.0,0.00013698,2]
[333614553,1722285038843,-198.01901572,0.00013698,2]
[333614554,1722285038853,-500.0,0.00013698,2]
[333614555,1722285038862,-500.0,0.00013698,2]
[333614556,1722285038872,-188.66237129,0.00013698,2]
[333614557,1722285038882,-500.0,0.00013698,2]
[333614558,1722285038891,-500.0,0.00013698,2]
[333614559,1722285038900,-419.84703151,0.00013698,2]
[333614560,1722285038910,-500.0,0.00013698,2]
[333614561,1722285038919,-502.31872186,0.00013698,2]
[333614562,1722285038929,-500.0,0.00013698,2]
[333614563,1722285038939,-151.0,0.00013698,2]
[333614564,1722285038951,-151.0,0.00013698,2]
[333614565,1722285038960,-151.0,0.00013698,2]
[333614566,1722285038970,-500.0,0.00013698,2]
[333614567,1722285038979,-500.0,0.00013698,2]
[333614568,1722285038990,-481.51294287,0.00013698,2]
[333614569,1722285039000,-500.0,0.00013698,2]
[333614570,1722285039010,-500.0,0.00013698,2]
[333614571,1722285039021,-500.0,0.00013698,2]
[333614572,1722285039031,-527.8144405,0.00013698,2]
[333614573,1722285039042,-518.01347535,0.00013698,2]
[333614574,1722285039052,-500.0,0.00013698,2]
[333614575,1722285039062,-500.0,0.00013698,2]
[333614576,1722285039076,-500.0,0.00013698,2]
[333614577,1722285039088,-500.0,0.00013698,2]
[333614578,1722285039098,-500.0,0.00013698,2]
[333614579,1722285039109,-500.0,0.00013698,2]
[333614580,1722285039118,-500.0,0.00013698,2]
[333614581,1722285039129,-500.0,0.00013698,2]
[333614582,1722285039138,-281.85803471,0.00013698,2]
[333614583,1722285039147,-500.0,0.00013698,2]
[333614584,1722285039156,-500.0,0.00013698,2]
[333614585,1722285039165,-500.0,0.00013698,2]
[333614586,1722285039174,-500.0,0.00013698,2]
[333614587,1722285039183,-500.0,0.00013698,2]
[333614588,1722285039194,-500.0,0.00013698,2]
[333614589,1722285039287,-500.0,0.00013698,2]
[333614590,1722285039296,-500.0,0.00013698,2]
[333614591,1722285039306,-500.0,0.00013698,2]
[333614592,1722285039315,-500.0,0.00013698,2]
[333614593,1722285039328,-500.0,0.00013698,2]
[333614594,1722285039339,-500.0,0.00013698,2]
[333614595,1722285039349,-500.0,0.00013698,2]
[333614596,1722285039358,-500.0,0.00013698,2]
[333614597,1722285039367,-505.17,0.00013698,2]
[333614598,1722285039377,-500.0,0.00013698,2]
[333614599,1722285039387,-500.0,0.00013698,2]
[333614600,1722285039398,-500.0,0.00013698,2]
[333614601,1722285039408,-500.0,0.00013698,2]
[333614602,1722285039418,-500.0,0.00013698,2]
[333614603,1722285039427,-500.0,0.00013698,2]
[333614605,1722285039436,-500.0,0.00013698,2]
[333614607,1722285039445,-500.0,0.00013698,2]
[333614608,1722285039456,-189.43368893,0.00013698,2]
[333614609,1722285039466,-500.0,0.00013698,2]
[333614610,1722285039476,-503.80219496,0.00013698,2]
[333614611,1722285039486,-500.0,0.00013698,2]
[333614612,1722285039495,-500.0,0.00013698,2]
[333614613,1722285039505,-500.0,0.00013698,2]
[333614614,1722285039514,-500.0,0.00013698,2]
[333614615,1722285039524,-500.0,0.00013698,2]
[333614616,1722285039534,-500.0,0.00013698,2]
[333614617,1722285039543,-500.0,0.00013698,2]
[333614619,1722285039552,-151.0,0.00013698,2]
[333614620,1722285039562,-500.0,0.00013698,2]
[333614622,1722285039572,-151.0,0.00013698,2]
[333614624,1722285039582,-500.0,0.00013698,2]
[333614625,1722285039592,-500.0,0.00013698,2]
[333614626,1722285039602,-500.0,0.00013698,2]
[333614627,1722285039612,-500.0,0.00013698,2]
[333614628,1722285039624,-539.34323484,0.00013698,2]
[333614629,1722285039635,-500.0,0.00013698,2]
[333614630,1722285039647,-500.0,0.00013698,2]
[333614631,1722285039658,-325.36337819,0.00013698,2]
[333614632,1722285039668,-500.0,0.00013698,2]
[333614633,1722285039677,-500.0,0.00013698,2]
[333614634,1722285039687,-500.0,0.00013698,2]
[333614635,1722285039696,-501.43147663,0.00013698,2]
[333614636,1722285039706,-500.0,0.00013698,2]
[333614637,1722285039716,-500.0,0.00013698,2]
[333614638,1722285039725,-507.47168778,0.00013698,2]
[333614639,1722285039735,-500.0,0.00013698,2]
[333614640,1722285039745,-519.68227313,0.00013698,2]
[333614641,1722285039754,-500.0,0.00013698,2]
[333614642,1722285039767,-500.0,0.00013698,2]
[333614643,1722285039776,-500.0,0.00013698,2]
[333614644,1722285039786,-478.3836698,0.00013698,2]
[333614645,1722285039795,-500.0,0.00013698,2]
[333614646,1722285039805,-501.10914025,0.00013698,2]
[333614647,1722285039814,-500.0,0.00013698,2]
[333614648,1722285039826,-500.0,0.00013698,2]
[333614649,1722285039835,-500.0,0.00013698,2]
[333614650,1722285039845,-500.0,0.00013698,2]
[333614651,1722285039855,-500.0,0.00013698,2]
[333614652,1722285039865,-500.0,0.00013698,2]
[333614653,1722285039874,-513.09903487,0.00013698,2]
[333614654,1722285039884,-500.0,0.00013698,2]
[333614655,1722285039894,-500.0,0.00013698,2]
[333614656,1722285039903,-500.0,0.00013698,2]
[333614657,1722285039913,-500.0,0.00013698,2]